fUST/lending_fUST_20240413
["ID","MTS","AMOUNT","RATE_DAILY","PERIOD"]
[322434323,1712995841951,-707.55,0.00037591,7]
[322434324,1712995841960,-500.0,0.00037591,7]
[322434325,1712995841970,-500.0,0.00037591,7]
[322434326,1712995841981,-1123.27,0.00037591,7]
[322434327,1712995841992,-500.0,0.00037591,7]
[322434328,1712995842002,-501.09961894,0.00037591,2]
[322434329,1712995842012,-500.0,0.00037591,7]
[322434330,1712995842022,-500.0,0.00037591,7]
[322434331,1712995842031,-500.0,0.00037591,7]
[322434332,1712995842043,-500.33287522,0.00037591,7]
[322434333,1712995842052,-500.0,0.00037591,7]
[322434334,1712995842061,-500.0,0.00037591,7]
[322434335,1712995842070,-500.0,0.00037591,7]
[322434336,1712995842081,-500.0,0.00037591,7]
[322434337,1712995842091,-219.28494068,0.00037591,7]
[322434338,1712995842100,-500.0,0.00037591,7]
[322434339,1712995842110,-500.0,0.00037591,7]
[322434340,1712995842120,-508.45342757,0.00037591,7]
[322434341,1712995842130,-500.0,0.00037592,7]
[322434342,1712995842141,-413.52960305,0.00037592,7]
[322434343,1712995842150,-510.66207589,0.00037592,7]
[322434344,1712995842161,-1458.2,0.00037592,7]
[322434345,1712995842170,-500.0,0.00037592,7]
[322434346,1712995842179,-500.0,0.00037592,7]
[322434347,1712995842188,-500.0,0.00037592,7]
[322434348,1712995842197,-500.0,0.00037592,7]
[322434349,1712995842207,-500.0,0.00037592,7]
[322434350,1712995842216,-500.0,0.00037592,7]
[322434351,1712995842225,-500.0,0.00037592,7]
[322434352,1712995842235,-500.0,0.00037592,7]
[322434353,1712995842243,-500.0,0.00037592,7]
[322434354,1712995842253,-508.62675461,0.00037592,7]
[322434355,1712995842262,-504.09628153,0.00037592,7]
[322434356,1712995842272,-500.0,0.00037592,7]
[322434357,1712995842282,-500.59608291,0.00037592,7]
[322434359,1712995842291,-500.0,0.00037592,7]
[322434361,1712995842301,-500.0,0.00037592,7]
[322434363,1712995842310,-500.0,0.00037592,7]
[322434364,1712995842320,-500.0,0.00037592,7]
[322434365,1712995842329,-500.0,0.00037592,7]
[322434366,1712995842339,-500.0,0.00037592,7]
[322434367,1712995842348,-500.0,0.00037592,7]
[322434368,1712995842358,-500.0,0.00037592,7]
[322434369,1712995842369,-500.0,0.00037592,7]
[322434370,1712995842378,-500.0,0.00037592,7]
[322434371,1712995842388,-554.51550462,0.00037592,7]
[322434372,1712995842397,-500.0,0.00037592,7]
[322434374,1712995842407,-500.0,0.00037592,7]
[322434375,1712995842419,-434.21428515,0.00037592,7]
[322434376,1712995842429,-500.0,0.00037592,7]
[322434377,1712995842438,-500.0,0.00037592,7]
[322434378,1712995842447,-500.0,0.00037592,7]
[322434380,1712995842455,-504.24950144,0.00037592,7]
[322434381,1712995842465,-500.0,0.00037592,7]
[322434383,1712995842475,-803.22,0.00037592,7]
[322434386,1712995842484,-500.0,0.00037592,7]
[322434390,1712995842494,-213.59816491,0.00037592,7]
[322434393,1712995842504,-501.33988222,0.00037592,7]
[322434394,1712995842514,-500.0,0.00037592,7]
[322434396,1712995842524,-500.0,0.00037592,7]
[322434397,1712995842533,-500.0,0.00037592,7]
[322434399,1712995842543,-495.34182563,0.00037592,7]
[322434401,1712995842552,-500.0,0.00037592,7]
[322434403,1712995842561,-500.0,0.00037592,7]
[322434405,1712995842570,-275.83421792,0.00037592,7]
[322434406,1712995842580,-500.0,0.00037592,7]
[322434407,1712995842589,-500.0,0.00037592,7]
[322434408,1712995842598,-500.0,0.00037592,7]
[322434409,1712995842608,-500.0,0.00037592,7]
[322434410,1712995842617,-500.0,0.00037592,7]
[322434412,1712995842628,-523.11839054,0.00037592,7]
[322434414,1712995842638,-500.0,0.00037592,7]
[322434415,1712995842648,-342.39120222,0.00037592,7]
[322434416,1712995842658,-500.0,0.00037592,7]
[322434417,1712995842667,-539.62472715,0.00037592,7]
[322434418,1712995842677,-1827.25,0.00037592,7]
[322434419,1712995842687,-502.3961917,0.00037592,7]
[322434420,1712995842697,-505.51477599,0.00037592,7]
[322434421,1712995842707,-505.66696559,0.00037592,7]
[322434422,1712995842716,-507.93799496,0.00037592,7]
[322434423,1712995842725,-500.0,0.00037592,7]
[322434424,1712995842735,-500.0,0.00037593,7]
[322434425,1712995842745,-503.27185561,0.00037593,7]
[322434426,1712995842754,-502.35220558,0.00037593,7]
[322434427,1712995842767,-500.0,0.00037593,7]
[322434428,1712995842777,-359.50186365,0.00037626,20]
[322434429,1712995842787,-1566.2612075,0.00037626,4]
[322434430,1712995842797,-190.13793507,0.00037626,4]
[322434431,1712995842816,-276.22880515,0.00037626,2]
[322434432,1712995842830,-18625.42501199,0.00037626,4]
[322434433,1712995842841,-1014.05805107,0.00037631,4]
[322434435,1712995842852,-183.99725732,0.00037631,10]
[322434436,1712995842862,-87768.61295197,0.00037632,2]
[322434437,1712995842872,-19325.04614029,0.00037632,2]
[322434438,1712995842882,-169380.35943482,0.00037632,2]
[322434439,1712995842893,-779.90670677,0.00037632,2]
[322434440,1712995842903,-1188.91674593,0.00037632,14]
[322434441,1712995842913,-224.0839534,0.00037632,10]
[322434442,1712995842923,-285.98063394,0.00037632,2]
[322434443,1712995842932,-4080.59686492,0.00037632,2]
[322434444,1712995842943,-314.94550491,0.00037632,2]
[322434445,1712995842953,-280.64279219,0.00037632,2]
[322434447,1712995842962,-13001.0516229,0.00037632,2]
[322434448,1712995842972,-4414.35130694,0.00037632,2]
[322434449,1712995842982,-151.7343223,0.00037632,2]
[322434450,1712995842992,-27861.38916606,0.00037632,2]
[322434451,1712995843001,-468.24890068,0.00037632,2]
[322434452,1712995843015,-499.999999,0.00037632,2]
[322434454,1712995843026,-429.95862147,0.00037632,2]
[322434455,1712995843037,-28028.74007764,0.00037632,2]
[322434456,1712995843050,-2027.85478027,0.00037632,2]
[322434457,1712995843061,-1003.70539617,0.00037632,2]
[322434458,1712995843071,-1001.77944041,0.00037632,2]
[322434459,1712995843081,-2727.2599325,0.00037632,5]
[322434460,1712995843091,-975.31224978,0.00037632,2]
[322434461,1712995843102,-152.60882266,0.00037632,22]
[322434462,1712995843112,-152.60882266,0.00037632,22]
[322434463,1712995843122,-11167.33,0.00037727,7]
[322434464,1712995843133,-485.61008657,0.00037727,7]
[322434465,1712995843143,-177.0,0.000378,13]
[322434466,1712995843153,-500.0,0.00038051,4]
[322434467,1712995843162,-418.62152639,0.00038198,4]
[322434468,1712995843172,-4506.69697288,0.00038198,4]
[322434469,1712995843182,-384.81468294,0.00038198,2]
[322434470,1712995843193,-176.18305468,0.00038198,7]
[322434471,1712995843202,-1940.84806292,0.00038198,4]
[322434472,1712995843212,-268.59221486,0.00038198,4]
[322434473,1712995843222,-1904.79965962,0.00038198,4]
[322434474,1712995843232,-155.28837047,0.00038198,4]
[322434475,1712995843242,-155.36459307,0.00038198,4]
[322434476,1712995843252,-361.7311953,0.00038198,4]
[322434478,1712995843263,-199.06889374,0.00038198,4]
[322434480,1712995843273,-272.41852159,0.00038198,4]
[322434482,1712995843284,-468.34215255,0.00038198,4]
[322434484,1712995843294,-155.6710823,0.00038198,4]
[322434486,1712995843304,-500.0,0.00038198,2]
[322434488,1712995843314,-157.74788196,0.00038198,4]
[322434490,1712995843323,-1687.91424541,0.00038198,4]
[322434492,1712995843333,-938.7940659,0.00038199,4]
[322434494,1712995843343,-5884.44418292,0.000382,2]
[322434496,1712995843425,-2887.96,0.00037588,7]
[322434497,1712995843435,-4547.2166128,0.000382,2]
[322434498,1712995843610,-3414.00424307,0.000382,2]
[322434499,1712995843622,-296.727,0.000382,2]
[322434500,1712995843634,-396.496,0.000382,2]
[322434522,1712995846184,-466.16787958,0.00037587,4]
[322434658,1712997038234,-155.12720431,0.00027394,2]
[322434660,1712997038244,-155.12720431,0.00027395,2]
[322434662,1712997038253,-163.696079,0.00027397,2]
[322434664,1712997038262,-1334.42756394,0.00035207,9]
[322434665,1712997038271,-166.666666,0.00035362,2]
[322434668,1712997038281,-175.62987039,0.00035532,2]
[322434670,1712997038291,-400.1,0.00035616,2]
[322434671,1712997038300,-1334.42756394,0.0003732,9]
[322434672,1712997038311,-174.91657605,0.00037486,8]
[322434673,1712997038321,-2000.0,0.00037487,2]
[322434674,1712997038330,-400.0,0.00037584,2]
[322434675,1712997038340,-502.32270366,0.00037585,4]
[322434676,1712997038350,-155.59242425,0.00037585,4]
[322434677,1712997038359,-264.68860952,0.00037585,4]
[322434678,1712997038368,-999.84320572,0.00037585,4]
[322434679,1712997038378,-155.56715355,0.00037585,4]
[322434680,1712997038387,-202.95749,0.00037585,4]
[322434681,1712997038397,-554.30344299,0.00037585,4]
[322434682,1712997038410,-160.93940628,0.00037585,2]
[322434683,1712997038419,-155.33200248,0.00037585,4]
[322434684,1712997038429,-213.90962097,0.00037585,4]
[322434685,1712997038438,-514.06705654,0.00037585,4]
[322434686,1712997038447,-1661.93121422,0.00037585,4]
[322434687,1712997038456,-939.71019604,0.00037585,4]
[322434688,1712997038465,-279.88294856,0.00037585,4]
[322434689,1712997038474,-597.74798778,0.00037585,2]
[322434690,1712997038485,-283.64420894,0.00037585,4]
[322434691,1712997038495,-155.25842455,0.00037585,4]
[322434692,1712997038504,-181.3448431,0.00037585,5]
[322434693,1712997038514,-432.47188751,0.00037585,4]
[322434694,1712997038523,-266.51962622,0.00037585,4]
[322434695,1712997038533,-284.26068043,0.00037585,4]
[322434696,1712997038542,-243.21556445,0.00037585,4]
[322434697,1712997038551,-155.49698991,0.00037585,4]
[322434698,1712997038563,-172.65631549,0.00037585,4]
[322434699,1712997038573,-212.00377151,0.00037585,4]
[322434700,1712997038583,-2647.26092283,0.00037585,4]
[322434701,1712997038593,-500.0,0.00037585,7]
[322434702,1712997038602,-589.45197431,0.00037585,7]
[322434703,1712997038611,-500.0,0.00037585,7]
[322434704,1712997038621,-1192.18,0.00037585,7]
[322434705,1712997038631,-500.0,0.00037585,7]
[322434706,1712997038640,-500.99034168,0.00037585,7]
[322434707,1712997038649,-500.0,0.00037585,7]
[322434708,1712997038658,-155.17922348,0.00037586,4]
[322434709,1712997038667,-235.93437582,0.00037586,7]
[322434710,1712997038676,-500.0,0.00037586,7]
[322434711,1712997038685,-500.0,0.00037586,14]
[322434712,1712997038695,-500.0,0.00037586,7]
[322434713,1712997038704,-500.0,0.00037586,7]
[322434714,1712997038713,-500.0,0.00037586,7]
[322434715,1712997038722,-500.0,0.00037586,7]
[322434716,1712997038732,-500.0,0.00037586,7]
[322434717,1712997038741,-500.0,0.00037586,7]
[322434718,1712997038750,-500.0,0.00037586,7]
[322434719,1712997038759,-500.0,0.00037586,7]
[322434720,1712997038769,-500.0,0.00037586,7]
[322434721,1712997038778,-500.0,0.00037586,7]
[322434722,1712997038787,-500.0,0.00037586,7]
[322434723,1712997038796,-500.0,0.00037586,15]
[322434724,1712997038806,-183.29234504,0.00037586,7]
[322434725,1712997038817,-375.99736236,0.00037586,7]
[322434726,1712997038826,-620.05184602,0.00037586,7]
[322434727,1712997038835,-500.0,0.00037586,7]
[322434728,1712997038845,-524.41683232,0.00037586,7]
[322434729,1712997038853,-488.13668854,0.00037586,7]
[322434730,1712997038862,-502.23498175,0.00037586,7]
[322434731,1712997038871,-500.0,0.00037586,7]
[322434732,1712997038881,-500.0,0.00037586,7]
[322434733,1712997038891,-504.41807224,0.00037586,7]
[322434734,1712997038900,-500.0,0.00037586,7]
[322434735,1712997038909,-675.46,0.00037586,7]
[322434736,1712997038918,-1485.58,0.00037586,7]
[322434737,1712997038928,-500.0,0.00037586,7]
[322434738,1712997038937,-500.0,0.00037586,7]
[322434739,1712997038947,-500.0,0.00037586,7]
[322434740,1712997038956,-500.0,0.00037586,7]
[322434741,1712997038965,-768.7,0.00037586,7]
[322434742,1712997038974,-500.0,0.00037586,7]
[322434743,1712997038984,-1243.47,0.00037586,7]
[322434744,1712997038993,-500.0,0.00037586,7]
[322434745,1712997039002,-516.92728088,0.00037586,7]
[322434746,1712997039012,-500.0,0.00037586,7]
[322434747,1712997039021,-500.0,0.00037586,7]
[322434748,1712997039031,-500.0,0.00037586,7]
[322434749,1712997039040,-886.78,0.00037586,7]
[322434750,1712997039050,-500.0,0.00037586,7]
[322434751,1712997039060,-500.0,0.00037586,7]
[322434752,1712997039069,-503.26912575,0.00037586,7]
[322434753,1712997039079,-500.0,0.00037586,7]
[322434754,1712997039088,-2904.35,0.00037586,7]
[322434755,1712997039097,-500.0,0.00037586,7]
[322434756,1712997039107,-500.0,0.00037586,7]
[322434757,1712997039116,-500.0,0.00037586,7]
[322434758,1712997039125,-3084.42,0.00037586,7]
[322434759,1712997039135,-500.0,0.00037586,7]
[322434760,1712997039145,-536.31,0.00037586,7]
[322434761,1712997039154,-500.0,0.00037586,7]
[322434762,1712997039164,-970.43,0.00037586,7]
[322434763,1712997039173,-1023.34,0.00037586,7]
[322434764,1712997039182,-500.0,0.00037586,7]
[322434765,1712997039192,-866.74,0.00037586,7]
[322434766,1712997039201,-507.12892981,0.00037586,7]
[322434767,1712997039210,-500.0,0.00037586,7]
[322434768,1712997039219,-500.0,0.00037586,7]
[322434769,1712997039230,-500.0,0.00037586,7]
[322434770,1712997039240,-500.0,0.00037586,7]
[322434771,1712997039250,-2911.02,0.00037586,7]
[322434772,1712997039259,-516.85798279,0.00037586,7]
[322434773,1712997039269,-500.0,0.00037586,7]
[322434774,1712997039278,-500.0,0.00037586,7]
[322434775,1712997039287,-1129.14,0.00037586,7]
[322434776,1712997039296,-1180.34,0.00037586,7]
[322434777,1712997039306,-1044.9,0.00037586,7]
[322434778,1712997039316,-500.0,0.00037586,7]
[322434779,1712997039326,-500.0,0.00037586,7]
[322434780,1712997039335,-500.0,0.00037586,7]
[322434781,1712997039344,-500.0,0.00037586,7]
[322434782,1712997039353,-858.2,0.00037586,7]
[322434783,1712997039362,-500.0,0.00037586,7]
[322434784,1712997039372,-500.0,0.00037586,7]
[322434785,1712997039381,-500.0,0.00037586,7]
[322434786,1712997039391,-500.0,0.00037586,7]
[322434787,1712997039401,-758.68,0.00037586,7]
[322434788,1712997039414,-1139.34,0.00037586,7]
[322434789,1712997039424,-501.56750092,0.00037586,7]
[322434790,1712997039433,-35651.75,0.00037586,7]
[322434791,1712997039443,-500.81964444,0.00037586,7]
[322434792,1712997039453,-500.0,0.00037586,7]
[322434793,1712997039462,-500.0,0.00037586,7]
[322434794,1712997039472,-2785.28,0.00037586,7]
[322434795,1712997039482,-500.0,0.00037586,7]
[322434796,1712997039494,-500.0,0.00037586,7]
[322434797,1712997039505,-500.0,0.00037586,7]
[322434798,1712997039516,-4084.07,0.00037586,7]
[322434799,1712997039526,-155.14101577,0.00037586,7]
[322434800,1712997039536,-1506.62,0.00037586,7]
[322434801,1712997039546,-1537.59,0.00037586,7]
[322434802,1712997039555,-500.0,0.00037586,7]
[322434803,1712997039565,-500.0,0.00037586,7]
[322434804,1712997039574,-2140.25,0.00037586,7]
[322434805,1712997039584,-62948.51880429,0.00037587,5]
[322434806,1712997039593,-207.03347943,0.00037587,4]
[322434807,1712997039602,-1014.05805107,0.00037587,4]
[322434808,1712997039612,-190.13793507,0.00037587,4]
[322434809,1712997039621,-359.50186365,0.00037587,20]
[322434810,1712997039631,-276.22880515,0.00037587,2]
[322434811,1712997039640,-1566.2612075,0.00037587,4]
[322434812,1712997039649,-18625.42501199,0.00037587,4]
[322434813,1712997039658,-500.0,0.00037587,7]
[322434814,1712997039667,-500.0,0.00037587,7]
[322434815,1712997039677,-500.0,0.00037587,7]
[322434816,1712997039686,-500.0,0.00037587,7]
[322434817,1712997039695,-723.5,0.00037587,7]
[322434818,1712997039704,-500.0,0.00037587,7]
[322434819,1712997039713,-500.0,0.00037587,7]
[322434820,1712997039722,-500.0,0.00037587,7]
[322434821,1712997039731,-500.0,0.00037587,7]
[322434823,1712997039742,-329.73914869,0.00037587,7]
[322434825,1712997039753,-500.0,0.00037587,7]
[322434827,1712997039762,-501.00411996,0.00037587,7]
[322434830,1712997039772,-500.0,0.00037587,7]
[322434832,1712997039781,-500.0,0.00037587,7]
[322434834,1712997039790,-500.0,0.00037587,7]
[322434836,1712997039799,-500.0,0.00037587,7]
[322434838,1712997039808,-500.0,0.00037587,7]
[322434840,1712997039816,-586.2799575,0.00037587,7]
[322434842,1712997039826,-520.17380218,0.00037587,7]
[322434844,1712997039834,-502.33900205,0.00037587,7]
[322434846,1712997039843,-162.80713427,0.00037587,7]
[322434848,1712997039853,-503.25069039,0.00037587,7]
[322434850,1712997039862,-500.0,0.00037587,7]
[322434852,1712997039871,-500.0,0.00037587,7]
[322434864,1712997039991,-500.0,0.00037587,7]
[322434865,1712997040000,-374.25531236,0.00037587,7]
[322434866,1712997040009,-500.0,0.00037587,7]
[322434867,1712997040018,-500.0,0.00037587,7]
[322434868,1712997040028,-500.0,0.00037587,7]
[322434869,1712997040037,-300.0,0.00037587,7]
[322434870,1712997040047,-500.0,0.00037587,7]
[322434871,1712997040056,-1000.0,0.00037587,7]
[322434872,1712997040067,-500.0,0.00037587,7]
[322434873,1712997040076,-515.95723654,0.00037587,7]
[322434874,1712997040086,-500.0,0.00037587,7]
[322434875,1712997040095,-500.0,0.00037587,7]
[322434876,1712997040104,-561.7647371,0.00037587,7]
[322434877,1712997040114,-501.42290715,0.00037587,7]
[322434878,1712997040123,-503.26559361,0.00037587,7]
[322434879,1712997040133,-504.6646191,0.00037587,7]
[322434880,1712997040142,-501.77509205,0.00037587,7]
[322434881,1712997040152,-500.0,0.00037587,7]
[322434882,1712997040162,-500.0,0.00037587,7]
[322434884,1712997040171,-510.00208274,0.00037587,7]
[322434885,1712997040180,-502.06209144,0.00037587,7]
[322434887,1712997040189,-500.0,0.00037587,7]
[322434889,1712997040198,-616.05104333,0.00037587,7]
[322434890,1712997040208,-500.0,0.00037587,7]
[322434891,1712997040217,-500.0,0.00037587,7]
[322434892,1712997040226,-500.0,0.00037587,7]
[322434893,1712997040235,-500.0,0.00037587,7]
[322434894,1712997040245,-500.0,0.00037587,7]
[322434895,1712997040254,-969.01,0.00037587,7]
[322434896,1712997040264,-905.85,0.00037587,7]
[322434897,1712997040273,-500.0,0.00037587,7]
[322434898,1712997040282,-500.0,0.00037587,7]
[322434899,1712997040292,-500.0,0.00037587,7]
[322434900,1712997040301,-500.0,0.00037587,7]
[322434901,1712997040310,-500.0,0.00037587,7]
[322434902,1712997040319,-500.0,0.00037587,7]
[322434903,1712997040329,-510.51005403,0.00037587,7]
[322434904,1712997040338,-500.0,0.00037587,7]
[322434905,1712997040348,-500.0,0.00037587,7]
[322434906,1712997040357,-502.10542521,0.00037587,7]
[322434907,1712997040367,-500.0,0.00037587,7]
[322434908,1712997040376,-500.0,0.00037587,7]
[322434909,1712997040385,-275.73086767,0.00037587,7]
[322434910,1712997040396,-500.0,0.00037587,7]
[322434911,1712997040407,-171.27004492,0.00037587,7]
[322434912,1712997040417,-500.0,0.00037587,7]
[322434913,1712997040426,-500.0,0.00037587,7]
[322434914,1712997040435,-500.0,0.00037587,7]
[322434915,1712997040445,-500.0,0.00037587,7]
[322434917,1712997040454,-165.52530305,0.00037587,7]
[322434918,1712997040462,-500.0,0.00037587,7]
[322434919,1712997040473,-500.0,0.00037587,7]
[322434920,1712997040482,-500.0,0.00037587,7]
[322434921,1712997040491,-501.72219097,0.00037587,7]
[322434922,1712997040500,-500.0,0.00037587,7]
[322434923,1712997040508,-512.13517562,0.00037587,7]
[322434924,1712997040517,-505.81425759,0.00037587,7]
[322434925,1712997040526,-500.79208165,0.00037587,7]
[322434926,1712997040535,-504.24733933,0.00037587,7]
[322434927,1712997040544,-500.0,0.00037587,7]
[322434928,1712997040554,-500.0,0.00037587,7]
[322434929,1712997040564,-500.0,0.00037587,7]
[322434930,1712997040573,-500.0,0.00037587,7]
[322434931,1712997040582,-500.0,0.00037587,7]
[322434932,1712997040591,-500.0,0.00037587,7]
[322434933,1712997040601,-500.0,0.00037587,7]
[322434934,1712997040610,-507.26959406,0.00037587,7]
[322434935,1712997040618,-500.0,0.00037587,7]
[322434936,1712997040627,-510.04369506,0.00037587,7]
[322434937,1712997040636,-4510.96,0.00037587,7]
[322434938,1712997040645,-500.0,0.00037587,7]
[322434939,1712997040655,-500.0,0.00037587,7]
[322434940,1712997040663,-1060.95,0.00037587,7]
[322434941,1712997040672,-500.0,0.00037587,7]
[322434942,1712997040681,-500.0,0.00037587,7]
[322434943,1712997040690,-500.0,0.00037587,7]
[322434944,1712997040699,-500.0,0.00037587,7]
[322434945,1712997040708,-500.0,0.00037587,7]
[322434946,1712997040717,-503.38,0.00037587,7]
[322434947,1712997040726,-500.0,0.00037587,7]
[322434948,1712997040735,-708.72,0.00037587,7]
[322434949,1712997040744,-500.0,0.00037587,7]
[322434950,1712997040753,-500.0,0.00037587,7]
[322434952,1712997040762,-500.0,0.00037587,7]
[322434953,1712997040771,-1076.47,0.00037587,7]
[322434955,1712997040780,-500.0,0.00037587,7]
[322434957,1712997040789,-508.47353412,0.00037587,7]
[322434958,1712997040798,-500.0,0.00037587,7]
[322434959,1712997040807,-500.0,0.00037587,7]
[322434960,1712997040817,-500.0,0.00037587,7]
[322434961,1712997040826,-500.0,0.00037587,7]
[322434962,1712997040835,-503.37206942,0.00037587,7]
[322434963,1712997040844,-500.0,0.00037587,7]
[322434964,1712997040853,-500.0,0.00037587,7]
[322434965,1712997040862,-500.0,0.00037587,7]
[322434966,1712997040872,-501.96761471,0.00037587,7]
[322434967,1712997040881,-500.0,0.00037587,7]
[322434968,1712997040890,-1466.48,0.00037587,7]
[322434969,1712997040899,-500.0,0.00037587,7]
[322434970,1712997040909,-500.0,0.00037587,7]
[322434971,1712997040918,-500.0,0.00037587,7]
[322434972,1712997040927,-412.49906291,0.00037587,7]
[322434973,1712997040936,-500.0,0.00037587,7]
[322434974,1712997040945,-500.0,0.00037587,7]
[322434975,1712997040954,-500.0,0.00037587,7]
[322434976,1712997040963,-7249.89,0.00037587,7]
[322434977,1712997040972,-500.0,0.00037587,7]
[322434978,1712997040982,-500.0,0.00037587,7]
[322434979,1712997040991,-500.0,0.00037587,7]
[322434980,1712997041000,-500.0,0.00037587,7]
[322434981,1712997041009,-500.0,0.00037587,7]
[322434982,1712997041018,-800.2,0.00037587,7]
[322434983,1712997041027,-508.62523054,0.00037587,7]
[322434984,1712997041037,-500.0,0.00037587,7]
[322434985,1712997041046,-500.0,0.00037587,7]
[322434986,1712997041055,-500.0,0.00037587,7]
[322434987,1712997041065,-500.0,0.00037587,7]
[322434988,1712997041075,-500.0,0.00037587,7]
[322434989,1712997041084,-500.0,0.00037587,7]
[322434990,1712997041094,-500.0,0.00037587,7]
[322434991,1712997041103,-500.0,0.00037587,7]
[322434992,1712997041112,-500.0,0.00037587,7]
[322434993,1712997041125,-500.0,0.00037587,7]
[322434994,1712997041138,-500.0,0.00037587,7]
[322434995,1712997041150,-500.0,0.00037587,7]
[322434996,1712997041165,-500.0,0.00037587,7]
[322434997,1712997041176,-500.0,0.00037587,7]
[322434998,1712997041187,-500.0,0.00037587,7]
[322434999,1712997041197,-500.0,0.00037587,7]
[322435000,1712997041209,-500.0,0.00037587,7]
[322435001,1712997041221,-500.0,0.00037587,7]
[322435002,1712997041232,-505.95434018,0.00037587,7]
[322435003,1712997041245,-2540.91,0.00037587,7]
[322435004,1712997041258,-500.0,0.00037587,7]
[322435005,1712997041270,-500.0,0.00037587,7]
[322435006,1712997041281,-285.65683808,0.00037587,7]
[322435007,1712997041292,-500.0,0.00037587,7]
[322435008,1712997041303,-500.0,0.00037587,7]
[322435009,1712997041314,-2324.81,0.00037587,7]
[322435010,1712997041325,-1516.14,0.00037587,7]
[322435011,1712997041336,-501.47356182,0.00037587,7]
[322435012,1712997041348,-500.0,0.00037587,7]
[322435013,1712997041360,-500.0,0.00037587,7]
[322435014,1712997041371,-239.44677944,0.00037587,7]
[322435015,1712997041382,-500.0,0.00037587,7]
[322435016,1712997041394,-500.0,0.00037587,7]
[322435017,1712997041407,-500.0,0.00037587,7]
[322435018,1712997041419,-11673.98,0.00037587,7]
[322435019,1712997041429,-513.28596305,0.00037587,7]
[322435020,1712997041440,-500.0,0.00037587,7]
[322435021,1712997041452,-645.78943678,0.00037587,7]
[322435022,1712997041466,-500.0,0.00037587,7]
[322435023,1712997041476,-500.0,0.00037587,7]
[322435024,1712997041491,-523.89,0.00037587,7]
[322435025,1712997041502,-500.0,0.00037587,7]
[322435026,1712997041513,-501.98167046,0.00037587,7]
[322435027,1712997041524,-504.84227026,0.00037587,7]
[322435028,1712997041534,-500.0,0.00037587,7]
[322435029,1712997041547,-500.0,0.00037587,7]
[322435030,1712997041558,-510.72468897,0.00037587,7]
[322435031,1712997041570,-500.0,0.00037587,7]
[322435032,1712997041582,-500.0,0.00037587,7]
[322435033,1712997041596,-500.0,0.00037587,7]
[322435034,1712997041608,-500.0,0.00037587,7]
[322435035,1712997041620,-485.61008657,0.00037587,7]
[322435036,1712997041633,-501.61728014,0.00037587,7]
[322435037,1712997041645,-500.0,0.00037587,7]
[322435038,1712997041656,-500.0,0.00037587,7]
[322435039,1712997041666,-500.0,0.00037587,7]
[322435040,1712997041676,-511.62980728,0.00037587,7]
[322435041,1712997041686,-500.0,0.00037587,7]
[322435042,1712997041696,-500.0,0.00037587,7]
[322435043,1712997041709,-500.0,0.00037587,7]
[322435044,1712997041721,-617.84541865,0.00037587,7]
[322435045,1712997041732,-804.62,0.00037587,7]
[322435046,1712997041743,-500.0,0.00037587,7]
[322435047,1712997041756,-231.50765205,0.00037587,7]
[322435048,1712997041769,-500.0,0.00037587,7]
[322435049,1712997041781,-500.0,0.00037587,7]
[322435050,1712997041791,-500.0,0.00037587,7]
[322435051,1712997041802,-500.0,0.00037587,7]